{"text_format":"1","workbook":"xlsx","n_sheets":4,"sheets":["RIGHT Function ","REPLACE Function ","MID Function ","User Defined Function "],"not_rendered":{"charts":0,"images":0,"macros":1,"external_links":0,"defined_names":0,"comments":0,"pivot_tables":0},"unopened":[],"bounds":{"document_bytes":16777216,"sheet_cells":100000,"rows_first":2000,"rows_last":500,"rows_between":2000,"halvings":0,"cell_chars":16384,"cell_head_chars":4096},"cells_cut":0,"cells_raw":0,"read":"whole","date_system":"1900"}

{"sheet":"RIGHT Function ","index":0,"n_rows":13,"n_cols":3,"rows_kept":13,"cut":false,"hidden":false,"merged":[[0,1,0,2]]}
[null,"Application of the RIGHT Function "]
[]
[null,"Text Strings","Result"]
[null,"275Alan ",{"$f":"RIGHT(B4,LEN(B4)-3)","v":"Alan "}]
[null,"%&Alex ",{"$f":"RIGHT(B5,LEN(B5)-3)","v":"lex "}]
[null,"JJJJordan ","Jordan "]
[null,"EEEElon ","Elon "]
[null,"%^NNaomi ","Naomi "]
[null,"451Rudolph ","Rudolph "]
[null,"789Lena ","Lena "]
[null,"6rrRocky ","Rocky "]
[null,"7yuAlexander","Alexander"]
[null,"AMlSimon","Simon"]

{"sheet":"REPLACE Function ","index":1,"n_rows":13,"n_cols":3,"rows_kept":13,"cut":false,"hidden":false,"merged":[[0,1,0,2]]}
[null,"Application of the REPLACE Function "]
[]
[null,"Text Strings","Result"]
[null,"275Alan ",{"$f":"REPLACE(B4,1,3,\"\")","v":"Alan "}]
[null,"%&Alex ",{"$f":"REPLACE(B5,1,3,\"\")","v":"lex "}]
[null,"JJJJordan ","Jordan "]
[null,"EEEElon ","Elon "]
[null,"%^NNaomi ","Naomi "]
[null,"451Rudolph ","Rudolph "]
[null,"789Lena ","Lena "]
[null,"6rrRocky ","Rocky "]
[null,"7yuAlexander","Alexander"]
[null,"AMlSimon","Simon"]

{"sheet":"MID Function ","index":2,"n_rows":13,"n_cols":3,"rows_kept":13,"cut":false,"hidden":false,"merged":[[0,1,0,2]]}
[null,"Insertation of the MID Function "]
[]
[null,"Text Strings","Result"]
[null,"275Alan ",{"$f":"MID(B4,4,LEN(B4)-3)","v":"Alan "}]
[null,"%&Alex ",{"$f":"MID(B5,4,LEN(B5)-3)","v":"lex "}]
[null,"JJJJordan ","Jordan "]
[null,"EEEElon ","Elon "]
[null,"%^NNaomi ","Naomi "]
[null,"451Rudolph ","Rudolph "]
[null,"789Lena ","Lena "]
[null,"6rrRocky ","Rocky "]
[null,"7yuAlexander","Alexander"]
[null,"AMlSimon","Simon"]

{"sheet":"User Defined Function ","index":3,"n_rows":13,"n_cols":3,"rows_kept":13,"cut":false,"hidden":false,"merged":[[0,1,0,2]]}
[null,"Introduction of a User Defined Function "]
[]
[null,"Text Strings","Result"]
[null,"275Alan ",{"$f":"RemoveFirst3(B4,3)","v":"Alan "}]
[null,"%&Alex ",{"$f":"RemoveFirst3(B5,3)","v":"lex "}]
[null,"JJJJordan ","Jordan "]
[null,"EEEElon ","Elon "]
[null,"%^NNaomi ","Naomi "]
[null,"451Rudolph ","Rudolph "]
[null,"789Lena ","Lena "]
[null,"6rrRocky ","Rocky "]
[null,"7yuAlexander","Alexander"]
[null,"AMlSimon","Simon"]